Cogmind - Beta 14 --- EXPLORER MODE // 2024.11.28 @ 12:46:11 Player: Warfaced Result: Self-destructed Performance ------------- Evolutions (1) 500 Regions Visited (3) 600 Robots Destroyed (24) 120 Value Destroyed (567) 567 Prototype IDs (9) 180 Alien Tech Used (0) 0 Bonus (0) 0 TOTAL SCORE: 1967 Bonus ------- None Cogmind --------- Core Integrity 341/400 Matter 253/300 Energy 112/125 System Corruption 0% Temperature Cool (0) Movement Treading (240) Ox1 Location -9/Mines Parts ------- > --- POWER (1) -------- Light Ion Engine > --- PROPULSION (3) --- Medium Treads > --- UTILITY (4) ------ Improved Heat Sink High-capacity Storage Unit Sensor Array Hacking Suite > --- WEAPON (2) ------- Beam Cannon Autogun > --- INVENTORY (20) --- Hover Unit Signal Interpreter Hacking Suite Small Laser Small Laser Beam Rifle Autogun Chainsword Peak State ------------ > --- POWER ------------ Light Ion Engine > --- PROPULSION ------- Medium Treads Hover Unit Hover Unit > --- UTILITY ---------- Improved Heat Sink High-capacity Storage Unit Sensor Array Hacking Suite > --- WEAPON ----------- Beam Cannon Autogun > --- INVENTORY -------- Hover Unit Hover Unit Signal Interpreter Hacking Suite Small Laser Small Laser Beam Rifle Autogun Chainsword [Rating: 19] Favorites ----------- Power Light Nuclear Core Engine Light Ion Engine Power Core Light Nuclear Core Propulsion Hover Unit Treads Medium Treads Leg Aluminum Leg Hover Unit Hover Unit Utility High-capacity Storage Unit Device Sensor Array Storage High-capacity Storage Unit Processor Targeting Computer Hackware Hacking Suite Weapon Small Laser Energy Gun Small Laser Energy Cannon Beam Cannon Ballistic Gun Assault Rifle Build | -11 -10 -9 -9 ------- Run | Yrd Mat Mat Min Slots Evolved 3 | . 1 2 . Power . | . . . . Propulsion 1 | . . 1 . Utility 2 | . 1 1 . Weapon . | . . . . Parts Attached 37 | 8 12 12 5 Power 7 | 2 2 1 2 Engine 6 | 2 1 1 2 Core 1 | . 1 . . Reactor . | . . . . Propulsion 11 | 2 1 5 3 Treads 1 | . . . 1 Leg 3 | 2 1 . . Wheel . | . . . . Hover 7 | . . 5 2 Flight . | . . . . Utility 7 | 2 3 2 . Device 3 | . 2 1 . Storage 2 | 1 1 . . Processor 1 | 1 . . . Hackware 1 | . . 1 . Protection . | . . . . Artifact . | . . . . Weapon 12 | 2 6 4 . Energy Gun 5 | 1 3 1 . Energy Cannon 1 | . . 1 . Ballistic Gun 6 | 1 3 2 . Ballistic Cannon . | . . . . Launcher . | . . . . Special Weapon . | . . . . Impact Weapon . | . . . . Slashing Weapon . | . . . . Piercing Weapon . | . . . . Special Melee Weapon . | . . . . Unidentified Prototypes . | . . . . Parts Lost 2 | . . . 2 Power 1 | . . . 1 Propulsion 1 | . . . 1 Utility . | . . . . Weapon . | . . . . Highest Loss Streak 2 | . . . 2 To Critical Strikes . | . . . . Average Slot Usage (%) 97 | . 96 97 96 Engine 4 | . 4 3 7 Core 6 | . 7 6 . Leg 13 | . 25 . . Hover 13 | . . 29 29 Device 17 | . 15 20 20 Storage 11 | . 12 10 10 Processor 3 | . 6 . . Hackware 4 | . . 8 10 Energy Gun 9 | . 12 8 . Energy Cannon 1 | . . 1 10 Ballistic Gun 10 | . 11 9 10 Peak Build Rating 19 | 7 11 16 19 Average Rating 11 | 4 8 14 15 On Entrance 8 | . 7 10 16 Naked Turns . | . . . . Heaviest Build 51 | 18 50 51 51 Greatest Support 28 | 20 20 20 28 Greatest Overweight (x) 16 | 4 2 2 16 Average Overweight (x) 1 | . . 2 2 Largest Inventory Capacity 20 | 10 20 20 20 Average Capacity 16 | 9 14 20 20 Most Carried 11 | 1 10 11 9 Average Carried 6 | . 6 7 7 Final Capacity 20 | 10 20 20 20 Final Carried 9 | . 8 9 8 Class Distribution -------------------- 93% | Hacker-Mutant 6% | Scavenger-Mutant Dominant Class ---------------- Hacker-Mutant | -10/Materials Hacker-Mutant | -9/Materials Hacker-Mutant | -9/Mines Resources | -11 -10 -9 -9 ----------- Run | Yrd Mat Mat Min Matter Collected 674 | 276 78 245 75 Remotely . | . . . . Salvage Created 685 | . 311 299 75 Parts 56 | . 29 24 3 Haulers Intercepted . | . . . . Recyclers Shooed 1 | . . 1 . Parts Field Recycled . | . . . . Retrieved Matter . | . . . . Parts Self-Destructed . | . . . . Prevented . | . . . . Kills | -11 -10 -9 -9 ------- Run | Yrd Mat Mat Min Combat Hostiles Destroyed 20 | . 7 11 2 Guns 13 | . 5 8 . Cannons 5 | . . 3 2 AOE 2 | . 2 . . Classes Destroyed 5 | . 3 1 1 Watcher 4 | . 3 1 . Swarmer 10 | . 2 8 . Grunt 8 | . 5 2 1 Duelist 1 | . . . 1 Sentry 1 | . . 1 . Best Kill Streak 5 | . 3 4 5 Combat Bots Only 4 | . 3 3 4 Max Kills in Single Turn 2 | . 2 1 1 Gunslinging . | . . . . Exploded 2 | . 2 . . Melee . | . . . . Uniques/NPCs Destroyed . | . . . . Combat | -11 -10 -9 -9 -------- Run | Yrd Mat Mat Min Hostile Shots Fired 99 | . 27 63 9 Missed 34 | . 8 25 1 Damage Taken 543 | . 154 217 172 Core 79 | . 20 59 . Absorbed by Shields . | . . . . Ignored by Resistances 342 | . 100 141 101 Core Remaining (%) 96 | 100 92 . . Volleys Fired 65 | . 22 33 10 Largest 2 | . 2 2 2 Hottest 83 | . 80 83 83 Shots Fired 129 | . 44 65 20 Gun 107 | . 44 53 10 Cannon 22 | . . 12 10 Launcher . | . . . . Special . | . . . . Kinetic 63 | . 20 33 10 Thermal 52 | . 10 32 10 Explosive . | . . . . Electromagnetic 14 | . 14 . . Robot Hit Streak 29 | . 21 29 24 Robot Miss Streak 2 | . 1 2 . Penetration Max . | . . . . Secondary Targets 2 | . 2 . . Max Gunslinging Chain 1 | . 1 . . Shots Hit Robots 106 | . 35 53 18 Core Hits 40 | . 18 18 4 Critical Kills . | . . . . Critical Parts Destroyed . | . . . . Critical Strikes . | . . . . Melee Attacks . | . . . . Impact . | . . . . Slashing . | . . . . Piercing . | . . . . Sneak Attacks . | . . . . Combat Hostiles . | . . . . Follow-up Attacks . | . . . . Damage Inflicted 1447 | . 457 707 283 Guns 998 | . 381 509 108 Cannons 364 | . . 191 173 Explosions 73 | . 73 . . Melee . | . . . . Ramming 12 | . 3 7 2 Kinetic 555 | . 145 302 108 Thermal 721 | . 150 398 173 Explosive . | . . . . Electromagnetic 159 | . 159 . . Impact . | . . . . Slashing . | . . . . Piercing . | . . . . Highest Corruption . | . . . . Average Corruption . | . . . . Corruption Purged . | . . . . Corruption Blocked . | . . . . Overload Shots . | . . . . Overflow Damage . | . . . . Projectiles . | . . . . Explosions . | . . . . Melee . | . . . . Knockbacks . | . . . . Impact . | . . . . Kinetic . | . . . . Secondary . | . . . . Self-Inflicted Damage 4 | . . 3 1 Shots . | . . . . Rammed 3 | . . 2 1 Targets Rammed 4 | . 1 2 1 Kicked 1 | . 1 . . Crushed . | . . . . Highest Temperature 177 | . 177 28 18 Average Temperature 34 | . 60 11 6 Received Heat Transfer 261 | . 174 81 6 Siege Activations . | . . . . Robots Corrupted . | . . . . Combat Hostiles . | . . . . Parts Fried . | . . . . Impact Corruptions . | . . . . Robots Melted . | . . . . Combat Hostiles . | . . . . Parts Melted 1 | . . 1 . Heat Transferred 1477 | . 225 882 370 Parts Sabotaged . | . . . . Parts Stolen . | . . . . Parts Stripped . | . . . . Power Chain Reactions 1 | . 1 . . Alert | -11 -10 -9 -9 ------- Run | Yrd Mat Mat Min Peak Influence 275 | . 239 275 105 Initial 75 | . . . 75 Average 63 | . 42 91 99 Maximum Alert Level 1 | . 1 1 . Low Security (%) 96 | 100 95 96 100 Level 1 3 | . 4 3 . Level 2 . | . . . . Level 3 . | . . . . Level 4 . | . . . . Level 5 . | . . . . High Security . | . . . . Max Security . | . . . . Squads Dispatched 2 | . 1 1 . Investigation 2 | . 1 1 . Extermination . | . . . . Reinforcement . | . . . . Assault . | . . . . Garrison . | . . . . Intercept . | . . . . Searches Triggered . | . . . . Construction Impeded . | . . . . Haulers Reinforced . | . . . . Active Scanning Responses . | . . . . Cargo Convoy Interrupts . | . . . . Stealth | -11 -10 -9 -9 --------- Run | Yrd Mat Mat Min Distress Signals 2 | . . 2 . Communications Jammed . | . . . . Distress Signals . | . . . . Times Spotted 34 | . 11 21 2 Peak Tracking Total 6 | . 4 6 2 Tactical Retreats 2 | . . 2 . Traps | -11 -10 -9 -9 ------- Run | Yrd Mat Mat Min Traps Triggered 2 | . 1 . 1 Indirectly . | . . . . Trap Hack Attempts . | . . . . Triggered . | . . . . Disarmed . | . . . . Reprogrammed . | . . . . Reused . | . . . . Traps Extracted . | . . . . Installed . | . . . . Triggered . | . . . . Machines | -11 -10 -9 -9 ---------- Run | Yrd Mat Mat Min Machines Disabled . | . . . . Max in Single Turn . | . . . . Machines Repaired . | . . . . Machines Dismantled . | . . . . Machines Sabotaged . | . . . . Overloaded Fab Kills . | . . . . Hacking | -11 -10 -9 -9 --------- Run | Yrd Mat Mat Min Machines Accessed 12 | . 7 4 1 Terminals 8 | . 5 3 . Fabricators . | . . . . Repair Stations 1 | . . 1 . Recycling Units 2 | . 2 . . Scanalyzers . | . . . . Garrison Access . | . . . . Total Hacks 37 | . 23 13 1 Successful 31 | . 20 10 1 Failed 6 | . 3 3 . Catastrophic . | . . . . Database Lockouts . | . . . . Manual . | . . . . Terminals 28 | . 18 10 . Fabricators . | . . . . Repair Stations 3 | . . 3 . Recycling Units 5 | . 5 . . Scanalyzers . | . . . . Garrison Access . | . . . . Terminal Hacks 26 | . 16 9 1 Record 8 | . 8 . . Robot Analysis 1 | . 1 . . Prototype ID Bank 4 | . 2 2 . Open Door 1 | . . . 1 Emergency Access Points 1 | . . 1 . Dispatch Records 3 | . 2 1 . Transport Status 2 | . 1 1 . Investigation Status 1 | . 1 . . Hauler Manifests 1 | . . 1 . Registered Components 1 | . . 1 . Zone Layout 3 | . 1 2 . Fabricator Hacks . | . . . . Repair Station Hacks 1 | . . 1 . Scan Component 1 | . . 1 . Recycling Unit Hacks 4 | . 4 . . Process 1 | . 1 . . Report Inventory 2 | . 2 . . Retrieve Components 1 | . 1 . . Scanalyzer . | . . . . Garrison Access Hacks . | . . . . Unauthorized Hacks . | . . . . Terminals . | . . . . Fabricators . | . . . . Repair Stations . | . . . . Recycling Units . | . . . . Scanalyzers . | . . . . Garrison Access . | . . . . Data Cores Recovered . | . . . . Used . | . . . . Hacking Detections 9 | . 5 4 . Full Trace Events 3 | . 2 1 . Feedback Events . | . . . . Feedback Blocked . | . . . . Robot Schematics Acquired . | . . . . Robots Built . | . . . . Authchips . | . . . . Time . | . . . . Total Robot Build Rating . | . . . . Part Schematics Acquired . | . . . . Parts Built . | . . . . Authchips . | . . . . Time . | . . . . Total Part Build Rating . | . . . . Parts Repaired . | . . . . Time . | . . . . Parts Recycled . | . . . . Recycled Matter . | . . . . Retrieved Matter . | . . . . Retrieved Components 2 | . 2 . . Parts Scanalyzed . | . . . . Part Schematics Acquired . | . . . . Parts Damaged . | . . . . Bothacking | -11 -10 -9 -9 ------------ Run | Yrd Mat Mat Min Used RIF Installer . | . . . . Robots Hacked . | . . . . Non-combat . | . . . . Combat . | . . . . Robot Hacks Applied . | . . . . Relay Couplers Released . | . . . . Fabnet Peak Effective % . | . . . . Robots Rewired . | . . . . Allies Hacked . | . . . . Hacks Repelled . | . . . . Allies | -11 -10 -9 -9 -------- Run | Yrd Mat Mat Min Total Allies . | . . . . Largest Group . | . . . . Highest-Rated Group . | . . . . Highest-Rated Ally . | . . . . Total Orders . | . . . . Ally Attacks . | . . . . Total Damage . | . . . . Kills . | . . . . Allies Corrupted . | . . . . Allies Melted . | . . . . Intel | -11 -10 -9 -9 ------- Run | Yrd Mat Mat Min Robot Analysis Total 1 | . 1 . . Derelict Logs Recovered . | . . . . Drone Launches . | . . . . Drone Recoveries . | . . . . Exploration | -11 -10 -9 -9 ------------- Run | Yrd Mat Mat Min Turns Passed 1888 | 83 948 703 154 Spaces Moved 937 | 50 501 329 57 Core 10 | 8 . . 2 Treads 1 | . . . 1 Legs 551 | 42 501 8 . Wheels . | . . . . Hover 375 | . . 321 54 Flight . | . . . . Fastest Speed 50 | 50 120 172 172 Average Speed 170 | 133 168 174 196 Slowest Speed 850 | 250 260 260 850 Overloaded Moves . | . . . . Propulsion Burnouts . | . . . . Robots Hopped . | . . . . Cave-ins Triggered . | . . . . Exploration Rate (%) 35 | 4 88 31 18 Regions Visited 3 Branch Regions 1 Pre-discovered Areas 1 | . . . 1 Known Exits Taken 3 | 1 1 1 . Unknown Exits Taken . | . . . . Scrap Searched . | . . . . Spaces Dug . | . . . . Terrain Destroyed 3 | . 3 . . Melee . | . . . . Projectile . | . . . . AOE 3 | . 3 . . Terrain Rammed . | . . . . Walls Destroyed . | . . . . Machines Disabled . | . . . . Actions | -11 -10 -9 -9 --------- Run | Yrd Mat Mat Min Total 1110 | 66 568 396 80 Wait 2 | . . . 2 Move 934 | 49 500 328 57 Hop . | . . . . Pick Up 44 | 8 22 12 2 Fast Attach . | . . . . Attach 14 | 7 2 3 2 Detach . | . . . . Swap 23 | 1 10 9 3 Drop 24 | 1 11 9 3 Fire 65 | . 22 33 10 Melee . | . . . . Ram 3 | . . 2 1 Kick 1 | . 1 . . Crush . | . . . . Escape Stasis . | . . . . Rewire . | . . . . Trap . | . . . . Miscellaneous . | . . . . Route ------- -11/Scrapyard -10/Materials (discovered 5 exits: *Mat x3 / *Min x2) -9/Materials (discovered 2 exits: *Min x2) -9/Mines (discovered 1 exit: *Mat) History --------- Turn | Location | Event 23 | -11/Scrapyard | Identified exit to Materials 23 | -11/Scrapyard | Discovered exit to Materials (range 15) 84 | -11/Scrapyard | Entered Materials 84 | -10/Materials | Evolved 1 slot: Utility x1 228 | -10/Materials | Identified exit to Mines 228 | -10/Materials | Discovered exit to Mines (range 14) 271 | -10/Materials | Identified exit to Materials 271 | -10/Materials | Discovered exit to Materials (range 12) 310 | -10/Materials | Build established: Hacker-Mutant 480 | -10/Materials | Discovered exit to Materials (range 3) 752 | -10/Materials | Discovered exit to Mines (range 13) 892 | -10/Materials | Discovered exit to Materials (range 8) 1032 | -10/Materials | Entered another Materials area 1032 | -9/Materials | Evolved 2 slots: Propulsion x1, Utility x1 1032 | -9/Materials | Identified exit to Mines 1032 | -9/Materials | Discovered exit to Mines (range 14) 1298 | -9/Materials | Discovered exit to Mines (range 15) 1735 | -9/Materials | Entered Mines 1736 | -9/Mines | Learned location of Storage (-7) 1818 | -9/Mines | Identified exit to Materials 1818 | -9/Mines | Discovered exit to Materials (range 7) 1865 | -9/Mines | Met a Derelict who couldn't figure out how to use a Trap Extractor 1889 | -9/Mines | Self-destructed Last Messages --------------- >>Open Door Sealed Doors opened. 2W-ROX(g): "So I found this thing but I have no idea how to use it. And who the hell trapped this place to begin with?!" 2W-ROX(g): "I give up! Here you try, I'm outta here before something nasty happens..." Tosses Imp. Trap Extractor to the ground. 2W-ROX(g) triggered Blade Trap. Massive razor-sharp blades shoot up from within the floor. Beamcaster severed. Triggered Explosive Trap. An explosion rips through the floor. Machine disabled. Acquired Chainsword. Acquired Med. Treads. Dropped Hover Unit. U-05 Engineer lays Concrete. Connecting with SHOP.Sys... Map ----- +----------------------------------------------------+ | ???????????????????????????????? | | ???????????????????????????????? | | ???????????????????????????????? | | ???????????????????????????????? | | ???????????????????????????????? | | ???????????????????????????????? | | ???????????????????????????????? | | ???????????????????????????????? | | ???????????????????????????????? | | ???????????????????????????????? | | ???????????????????????????????? | | ???????????????????????????????? | | ???????????????????????????????? | | ???????????????????????????????? | | ???????????????????????????????? | | ???????????????????????????????? | | ???????????????????????????????? | | ???????????????????????????????? | | ???????????????????????????????? | | ??????????? ???????????????????? | | ???######## ???????????????????? | | ???#"" """# #??????????????????? | | ???#! !![!# #??????????????????? | | ???# ! # #??????????????????? | | ???##[[ ==# #??????????????????? | | ???## @= # #??????????????????? | | ???# X # #??????????????????? | | ???# u # ##?????????????????? | | ???# #### ##????????????????? | | ??## ## ####?????????????? | | ?## ##????????????? | | ?# ##???????????? | | ?# #???????????? | | ?# #???????????? | | ?## ## ##???????????? | | ??## #### #####????????????? | | ???# #??## ##????????????????? | | ???# #???## #?????????????????? | | ???# ?????# #?????????????????? | | ???# ?????# #?????????????????? | | ???# #### ##????????????????? | | ??# #????????????????? | | ??# ##### #?##?????????????? | | ??# ?????# ## ##????????????? | | ???# ???### # #######??????? | | ???? ???## < ????? | | ???????## ????? | | ???????# ####???????? | | ???????# ## ##??????????? | | ???????## ##?######???????????? | +----------------------------------------------------+ Best States ------------- Heat Dissipation 42 Energy Generation 14 Energy Capacity 250 Matter Stores 300 Matter Capacity 300 Sight Range 16 Robot Scan Range 14 Terrain Scan Density 10 Resistance: KI 35 Resistance: TH 35 Resistance: EX 35 Resistance: EM 35 Resistance: I 35 Resistance: S 35 Resistance: P 35 Evasion (%) 55 Targeting Accuracy 5 Offensive Hacking 30 Item Schematics ----------------- None Robot Schematics ------------------ None Fabricated ------------ Nothing Alien Tech Used ----------------- None Achievements -------------- None Challenges ------------ None Game ------ Seed DisposableSiegeCycler Manual? 0 Play Time 00:29:01 Cumulative 4.1 hours Start 2024.11.28 @ 12:19:46 End 2024.11.28 @ 12:46:11 Sessions 1 Manual Loads 0 Difficulty Explorer Special Mode None Game No. 5 Rogue 1 Adventurer 0 Explorer 4 Win Type - Total 0 Types 0/0/0/0/0/0/0/0/0 Lore% 6 Gallery% 12 Achievement% 12 Wizard Run 0 Options --------- Layout 1 ASCII 0 Keyboard 0 Movement Mouse Keybinds 0 Fullscreen 1 Font 32/SmallcapsGlow Map View 50x35 Zoom Use 0% Tactical HUD 0 Map Filters NONE Filters NONE Steam 1 RUN: 8cccdf6f-a7fd-420c-9e3b-2e7b5486b34b